bitfinex-derivatives/quotes_SOLF0:USTF0_20250409
["timestamp","ask_amount","ask_price","bid_price","bid_amount"]
[1744178932142,0.0624358,105.99,105.97,9.443]
[1744178932443,0.0624358,105.99,105.97,62.0]
[1744178932648,0.0624358,105.99,105.96,0.06575751]
[1744178933842,9.4421,105.98,105.96,9.50955751]
[1744178934039,9.4421,105.98,105.96,0.06575751]
[1744178934239,0.0624358,105.99,105.96,0.06575751]
[1744178934439,9.443,105.97,105.96,0.06575751]
[1744178937231,9.4427,105.98,105.96,0.06575751]
[1744178939248,9.443,105.97,105.96,0.06575751]
[1744178940546,30.81161616,105.97,105.92,103.62074561]
[1744178940742,2.3732,105.96,105.92,103.62074561]
[1744178940947,9.4458,105.94,105.92,103.62074561]
[1744178941249,43.5932,105.96,105.92,103.62074561]
[1744178941453,9.4466,105.93,105.92,103.62074561]
[1744178941747,9.4466,105.93,105.92,81.83194561]
[1744178942450,9.4475,105.92,105.91,0.060208]
[1744178943052,9.51055373,105.93,105.91,0.060208]
[1744178943358,0.06355373,105.93,105.91,0.060208]
[1744178943649,0.06355373,105.93,105.91,62.060208]
[1744178943951,0.06355373,105.93,105.92,9.4475]
[1744178944254,498.46,106.0,105.92,41.24]
[1744178944255,539.7,106.0,105.92,41.24]
[1744178944453,9.4437,105.97,105.93,4.6528]
[1744178944954,9.4437,105.97,105.93,14.0986]
[1744178945146,9.4425,105.98,105.93,4.6528]
[1744178945455,0.07002601,105.96,105.94,0.07143513]
[1744178945754,0.07002601,105.96,105.95,9.4448]
[1744178946249,41.24,106.0,105.97,9.4426]
[1744178946455,72.05161616,106.03,105.95,41.24]
[1744178946754,9.4382,106.03,105.99,9.4406]
[1744178946952,2.3774,106.04,105.98,41.24]
[1744178947257,9.4348,106.07,106.02,9.4379]
[1744178947453,45.7191,106.09,106.02,9.4379]
[1744178947847,0.0640696,106.06,106.05,9.4359]
[1744178948048,4.6597,106.13,106.05,41.24]
[1744178948350,9.43,106.12,106.06,2.3914]
[1744178948848,171.11831239,106.15,106.06,33.20301616]
[1744178949050,161.69101239,106.15,106.06,33.20301616]
[1744178949248,0.06957661,106.12,106.09,0.07077134]
[1744178950054,9.4311,106.11,106.09,0.07077134]
[1744178950256,0.06957661,106.12,106.09,0.07077134]
[1744178951156,41.28957661,106.12,106.01,30.81161616]
[1744178951355,41.28957661,106.12,106.02,43.6276]
[1744178951556,9.4326,106.09,106.04,9.4362]
[1744178951748,41.22,106.12,106.05,41.22]
[1744178952247,41.22,106.12,106.05,50.6555]
[1744178952449,0.06722959,106.1,106.07,0.06420852]
[1744178952648,9.4323,106.09,106.07,0.06420852]
[1744178952844,0.06722959,106.1,106.07,0.06420852]
[1744178953349,9.4332,106.08,106.07,0.06420852]
[1744178954246,9.4364,106.05,106.02,45.8678]
[1744178954457,43.6155,106.09,106.02,45.8678]
[1744178954862,9.4346,106.07,106.03,9.4375]
[1744178955062,43.6155,106.09,106.02,45.8678]
[1744178955363,49.95808701,106.06,105.95,41.2]
[1744178955554,43.5821,106.05,105.95,41.2]
[1744178956061,43.5821,106.05,105.95,91.15808701]
[1744178956563,43.5821,106.05,106.0,9.4403]
[1744178956751,0.07192095,106.01,105.99,0.06135709]
[1744178957059,43.5821,106.05,105.99,9.4407]
[1744178957060,9.438,106.03,105.99,9.4407]
[1744178957358,0.06657804,106.01,105.99,0.07198188]
[1744178958462,9.4403,106.0,105.99,0.07198188]
[1744178958761,0.06657804,106.01,105.99,0.07198188]
[1744178959263,9.50607804,106.01,105.99,0.07198188]
[1744178959562,0.06657804,106.01,105.99,0.07198188]
[1744178959967,0.06657804,106.01,106.0,9.4403]
[1744178960563,0.06657804,106.01,105.99,0.07198188]
[1744178960966,0.06657804,106.01,106.0,9.4403]
[1744178961860,0.06657804,106.01,105.99,0.07198188]
[1744178962464,0.06657804,106.01,106.0,9.4403]
[1744178964265,0.06657804,106.01,105.99,0.07198188]
[1744178965061,0.06657804,106.01,105.99,9.51318188]
[1744178965264,0.06657804,106.01,105.99,0.07198188]
[1744178965865,0.06657804,106.01,106.0,9.4403]
[1744178967062,498.2,106.07,106.03,9.4372]
[1744178967258,42.84,106.12,106.01,42.84]
[1744178967562,9.4316,106.1,106.02,49.95808701]
[1744178967765,42.84,106.12,106.04,49.95808701]
[1744178968064,549.83897724,106.16,106.06,49.95808701]
[1744178968065,9.4293,106.13,106.06,49.95808701]
[1744178968268,0.06970991,106.09,106.07,42.90297651]
[1744178968459,0.06970991,106.09,106.07,45.13377651]
[1744178968762,0.06970991,106.09,106.08,9.4332]
[1744178969767,0.06970991,106.09,106.07,45.13377651]
[1744178969965,0.06970991,106.09,106.07,42.90297651]
[1744178970665,9.50210991,106.09,106.07,42.90297651]
[1744178971161,9.4332,106.08,106.07,0.06297651]
[1744178971369,42.88970991,106.09,106.02,2.4153]
[1744178971759,52.14888701,106.08,105.99,52.2607]
[1744178972176,52.14888701,106.08,105.99,42.82]
[1744178972366,52.14888701,106.08,106.0,9.4399]
[1744178972567,0.06587353,106.05,106.02,0.06079925]
[1744178972865,9.4377,106.03,106.02,0.06079925]
[1744178973168,0.06587353,106.05,106.02,0.06079925]
[1744178973372,9.4377,106.03,106.02,0.06079925]
[1744178973966,9.4372,106.04,106.02,0.06079925]
[1744178974171,0.06587353,106.05,106.02,0.06079925]
[1744178975572,9.4373,106.04,106.02,0.06079925]
[1744178976371,9.4377,106.03,106.02,0.06079925]
[1744178977273,9.4371,106.04,106.02,0.06079925]
[1744178977873,9.4375,106.04,106.02,0.06079925]
[1744178978273,0.06587353,106.05,106.02,0.06079925]
[1744178978274,0.06587353,106.05,106.02,42.88079925]
[1744178978675,0.06587353,106.05,106.03,4.4584]
[1744178978971,42.82,106.1,106.03,4.4584]
[1744178979174,42.82,106.1,106.04,2.2488]
[1744178979370,42.82,106.1,106.05,42.82]
[1744178979572,9.4332,106.08,106.05,52.2554]
[1744178980075,9.49417582,106.08,106.05,52.31795078]
[1744178980271,9.49417582,106.08,106.05,42.88255078]
[1744178980478,0.06097582,106.08,106.05,0.06255078]
[1744178980979,9.4347,106.07,106.05,0.06255078]
[1744178981270,0.06097582,106.08,106.05,0.06255078]
[1744178981474,9.4341,106.07,106.05,0.06255078]
[1744178982670,9.49467582,106.08,106.05,0.06255078]
[1744178982872,0.06097582,106.08,106.05,0.06255078]
[1744178983371,9.49427582,106.08,106.05,9.49765078]
[1744178983878,0.06097582,106.08,106.05,9.49765078]
[1744178984074,0.06097582,106.08,106.06,9.4346]
[1744178984467,0.06097582,106.08,106.07,9.4341]
[1744178984671,42.82,106.14,106.05,73.64124279]
[1744178984877,42.82,106.14,106.06,2.2647]
[1744178985077,9.4292,106.13,106.09,9.4315]
[1744178985276,42.82,106.17,106.08,42.82]
[1744178985671,9.431,106.11,106.08,52.2528]
[1744178985876,42.82,106.17,106.08,42.82]
[1744178986173,0.06102633,106.11,106.09,9.4323]
[1744178986374,42.82,106.17,106.11,0.06658331]
[1744178986775,0.06832774,106.15,106.11,0.06658331]
[1744178988382,43.16,106.14,106.11,0.06658331]
[1744178988575,9.4297,106.12,106.11,0.06658331]
[1744178988970,0.06024111,106.13,106.11,0.06658331]
[1744178989677,9.4297,106.12,106.11,0.06658331]
[1744179001389,40.17869201,106.12,106.04,4.51]
[1744179001583,45.5707,106.11,106.04,9.4364]
[1744179001986,45.5707,106.11,106.05,9.4354]
[1744179002284,45.5707,106.11,106.02,43.16]
[1744179002484,9.4348,106.07,106.02,43.16]
[1744179002682,9.4348,106.07,106.05,0.0643711]
[1744179002876,9.50357413,106.07,106.05,0.0643711]
[1744179003183,43.22877413,106.07,106.05,0.0643711]
[1744179003390,43.22877413,106.07,105.98,29.79879497]
[1744179003591,9.439,106.02,105.98,27.43189497]
[1744179003778,9.439,106.02,105.99,9.4412]
[1744179003982,52.5982,106.03,105.99,9.4412]
[1744179004279,43.16,106.07,105.98,27.43189497]
[1744179004480,0.0625406,106.02,106.0,0.065281]
[1744179004775,43.16,106.07,105.98,89.43189497]
[1744179005076,0.06965296,106.02,106.0,0.0660009]
[1744179005278,0.06965296,106.02,106.0,9.5059009]
[1744179005479,43.16,106.07,105.98,89.43189497]
[1744179005789,9.4394,106.01,106.0,0.06483894]
[1744179006291,9.4394,106.01,105.99,0.06652431]
[1744179006692,9.50506294,106.02,105.99,9.50772431]
[1744179007788,9.4394,106.01,105.99,0.06652431]
[1744179007993,0.06606294,106.02,105.99,0.06652431]
[1744179008592,9.50506294,106.02,105.99,9.50732431]
[1744179008893,0.06606294,106.02,105.99,0.06652431]
[1744179009087,9.50466294,106.02,105.99,9.50732431]
[1744179009391,0.06606294,106.02,105.99,0.06652431]
[1744179009594,9.436,106.05,105.99,30.82521632]
[1744179009783,2.2354,106.07,105.99,0.06652431]
[1744179009986,45.4154,106.07,105.97,30.75869201]
[1744179010186,9.4365,106.05,105.97,30.75869201]
[1744179010592,9.4381,106.03,105.99,9.4405]
[1744179010889,0.06631719,106.02,106.0,0.06707668]
[1744179011090,9.4364,106.05,105.99,43.18]
[1744179011286,0.06574109,106.02,106.0,0.06817599]
[1744179011888,0.06574109,106.02,106.01,9.4394]
[1744179012096,0.06574109,106.02,106.0,0.06817599]
[1744179012395,9.50474109,106.02,106.0,0.06817599]
[1744179013095,0.06574109,106.02,106.0,9.50847599]
[1744179013291,0.06574109,106.02,106.0,0.06817599]
[1744179013592,9.4394,106.01,106.0,0.06817599]
[1744179014893,11.76064109,106.02,106.0,0.06817599]
[1744179015190,2.32164109,106.02,106.0,0.06817599]
[1744179015396,0.06574109,106.02,106.0,0.06817599]
[1744179015593,4.6945,106.08,106.0,0.06817599]
[1744179015896,9.4345,106.07,106.01,30.75869201]
[1744179016284,2.3633,106.08,106.05,9.4359]
[1744179016490,2.2415,106.11,106.02,105.18]
[1744179016695,43.04,106.14,106.03,33.15119201]
[1744179016889,0.07003088,106.08,106.05,0.06144268]
[1744179017086,43.04,106.14,106.05,0.06526432]
[1744179017294,43.04,106.14,106.05,9.4352]
[1744179017295,0.06316508,106.08,106.05,9.4352]
[1744179017491,9.433,106.09,106.08,0.06134343]
[1744179017696,9.433,106.09,106.05,9.4352]
[1744179017697,43.04,106.14,106.05,43.04]
[1744179017904,0.0723675,106.1,106.07,0.06442612]
[1744179018196,43.1123675,106.1,106.03,33.15119201]
[1744179018397,43.04,106.1,106.07,0.06986431]
[1744179018591,0.07114658,106.08,106.07,0.06986431]
[1744179022399,9.50434658,106.08,106.07,0.06986431]
[1744179023903,0.07114658,106.08,106.07,0.06986431]
[1744179025101,0.07114658,106.08,106.07,9.50396431]
[1744179025302,0.07114658,106.08,106.07,0.06986431]
[1744179026099,9.431,106.11,106.08,9.4326]
[1744179026301,4.5981,106.15,106.07,30.82855632]
[1744179026596,2.2415,106.16,106.08,4.6703]
[1744179026790,2.2415,106.16,106.09,43.02]
[1744179026996,541.08,106.17,106.09,45.3421]
[1744179027199,0.07033717,106.14,106.11,0.06672548]
[1744179027601,0.07033717,106.14,106.11,9.49682548]
[1744179027997,0.07033717,106.14,106.11,0.06672548]
[1744179028201,12.40533608,106.19,106.12,43.02]
[1744179028397,2.98113608,106.19,106.13,2.2876]
[1744179029003,2.98113608,106.19,106.15,9.4264]
[1744179029297,2.98113608,106.19,106.15,43.02]
[1744179029502,0.06851941,106.18,106.16,0.07121529]
[1744179029706,0.06851941,106.18,106.09,531.04079201]
[1744179029997,9.4268,106.16,106.12,9.4294]
[1744179030694,9.4259,106.17,106.13,9.4283]
[1744179030893,0.06716482,106.15,106.13,9.49131189]
[1744179031600,0.06716482,106.15,106.13,0.06301189]
[1744179032697,9.4279,106.14,106.13,0.06301189]
[1744179033205,0.06716482,106.15,106.13,0.06301189]
[1744179033705,9.4279,106.14,106.13,0.06301189]
[1744179034106,0.06716482,106.15,106.13,0.06301189]
[1744179034508,0.06716482,106.15,106.14,9.4279]
[1744179034707,0.06716482,106.15,106.13,0.06301189]
[1744179035211,0.06716482,106.15,106.13,9.49111189]
[1744179035508,0.06716482,106.15,106.13,0.06301189]
[1744179036007,0.06716482,106.15,106.14,9.4279]
[1744179036518,2.98113608,106.19,106.14,43.0]
[1744179036713,2.98113608,106.19,106.14,45.2697]
[1744179037009,2.98113608,106.19,106.17,9.4252]
[1744179037303,2.98113608,106.19,106.15,2.3892]
[1744179037510,12.40473608,106.19,106.15,2.3892]
[1744179037710,0.06669527,106.18,106.16,0.06462725]
[1744179037912,0.06669527,106.18,106.16,9.49022725]
[1744179038101,2.98113608,106.19,106.17,43.0]
[1744179038305,43.0,106.26,106.17,43.0]
[1744179038503,9.4204,106.23,106.17,43.0]
[1744179038711,7.0684,106.25,106.17,43.0]
[1744179039111,16.487,106.25,106.22,9.4201]
[1744179039310,16.52782949,106.25,106.22,0.06368682]
[1744179039506,4.70612949,106.25,106.22,0.06368682]
[1744179039712,9.4199,106.23,106.22,0.06368682]
[1744179040209,9.4198,106.24,106.22,0.06368682]
[1744179040405,0.04082949,106.25,106.22,0.06368682]
[1744179040810,9.4199,106.23,106.22,0.06368682]
[1744179041409,9.4199,106.23,106.17,42.98]
[1744179041410,9.4231,106.2,106.17,42.98]
[1744179041608,42.98,106.23,106.17,42.98]
[1744179041814,45.272,106.23,106.16,9.4255]
[1744179042007,45.272,106.23,106.15,2.3892]
[1744179042310,45.272,106.23,106.17,42.98]
[1744179042507,9.4212,106.22,106.19,9.4234]
[1744179042708,0.06329844,106.21,106.19,9.49524657]
[1744179043407,9.48509844,106.21,106.19,0.07184657]
[1744179044813,0.06329844,106.21,106.19,9.49514657]
[1744179045113,0.06329844,106.21,106.19,0.07184657]
[1744179045315,0.06329844,106.21,106.2,9.4225]
[1744179046315,42.98,106.26,106.19,0.07184657]
[1744179046517,42.98,106.26,106.2,42.12]
[1744179046712,52.3977,106.26,106.2,42.12]
[1744179047115,42.98,106.26,106.2,42.12]
[1744179047417,49.0571,106.29,106.2,72.87869201]
[1744179047616,0.04121786,106.24,106.22,0.06614183]
[1744179047816,0.04121786,106.24,106.23,51.5399]
[1744179048014,49.0571,106.29,106.2,42.12]
[1744179048214,0.04121786,106.25,106.22,9.48052013]
[1744179048414,9.45971786,106.25,106.2,42.12]
[1744179048615,9.45971786,106.25,106.22,0.06147374]
[1744179048815,9.4199,106.23,106.22,0.06147374]
[1744179049719,9.4194,106.24,106.22,0.06147374]
[1744179050112,0.04121786,106.25,106.22,0.06147374]
[1744179050314,9.45981786,106.25,106.22,0.06147374]
[1744179050510,0.04121786,106.25,106.22,0.06147374]
[1744179051420,9.419,106.24,106.22,0.06147374]
[1744179051818,0.04121786,106.25,106.22,0.06147374]
[1744179052118,9.4199,106.23,106.22,0.06147374]
[1744179052521,0.04121786,106.25,106.22,0.06147374]
[1744179053223,9.4199,106.23,106.22,0.06147374]
[1744179055029,9.4235,106.19,106.17,42.12]
[1744179055222,42.12,106.23,106.14,108.8605]
[1744179055223,2.2286,106.22,106.14,108.8605]
[1744179055421,2.2286,106.22,106.15,9.4264]
[1744179055729,32.98729201,106.22,106.14,46.8605]
[1744179056027,30.75869201,106.2,106.12,112.56549825]
[1744179056218,0.06084755,106.19,106.17,0.06128961]
[1744179056625,0.06084755,106.19,106.12,103.13629825]
[1744179056925,9.4256,106.17,106.12,103.13629825]
[1744179057118,44.4941,106.21,106.12,103.13629825]
[1744179057318,9.4237,106.19,106.12,103.13629825]
[1744179057518,44.4941,106.21,106.12,103.13629825]
[1744179057823,9.49147797,106.17,106.14,0.06234905]
[1744179058125,0.06597797,106.17,106.11,42.12]
[1744179058327,0.06597797,106.17,106.14,0.06813925]
[1744179058824,9.4265,106.16,106.14,0.06813925]
[1744179059427,9.427,106.15,106.14,0.06813925]
[1744179059622,0.06597797,106.17,106.14,0.06813925]
[1744179060026,9.4266,106.16,106.14,0.06813925]
[1744179060319,0.06597797,106.17,106.14,0.06813925]
[1744179060526,0.06597797,106.17,106.14,42.18813925]
[1744179061721,0.06597797,106.17,106.16,9.4261]
[1744179063229,42.12,106.25,106.16,40.17869201]
[1744179063422,4.6822,106.27,106.18,30.75869201]
[1744179063625,9.418,106.26,106.19,42.12]
[1744179064026,9.418,106.26,106.2,2.3428]
[1744179064224,2.4153,106.29,106.21,0.0624233]
[1744179064423,2.4153,106.29,106.22,42.12]
[1744179064628,9.4159,106.28,106.24,9.4189]
[1744179065128,9.4159,106.28,106.25,9.4181]
[1744179065322,44.3205,106.31,106.22,42.12]
[1744179065524,0.02732279,106.28,106.25,0.06340933]
[1744179065829,42.14732279,106.28,106.25,0.06340933]
[1744179066028,42.14732279,106.28,106.17,44.5194]
[1744179066029,35.27739201,106.27,106.17,44.5194]
[1744179066229,9.4196,106.24,106.2,9.4221]
[1744179066928,9.42,106.23,106.17,106.5194]
[1744179067136,0.06216534,106.23,106.21,0.06013466]
[1744179068033,9.4208,106.22,106.21,0.06013466]
[1744179068223,0.06216534,106.23,106.21,0.06013466]
[1744179068734,9.48256534,106.23,106.21,0.06013466]
[1744179068935,0.06216534,106.23,106.21,0.06013466]
[1744179069531,0.06216534,106.23,106.22,9.4208]
[1744179069930,6.534e-05,106.23,106.22,9.4208]
[1744179070133,6.534e-05,106.23,106.22,11.6703]
[1744179070436,42.12,106.35,106.22,44.62399201]
[1744179070734,42.12,106.37,106.26,30.75869201]
[1744179070931,9.4097,106.35,106.27,44.533]
[1744179071229,44.4406,106.37,106.27,44.533]
[1744179071230,30.75869201,106.42,106.3,30.75869201]
[1744179071431,35.40599201,106.4,106.31,44.3612]
[1744179071633,0.02856678,106.37,106.35,9.391e-05]
[1744179071834,42.12,106.36,106.35,9.391e-05]
[1744179072134,51.5284,106.36,106.35,9.391e-05]
[1744179073335,9.413,106.31,106.28,2.35]
[1744179073532,72.87869201,106.36,106.27,2.413]
[1744179073927,72.87869201,106.36,106.25,107.9693]
[1744179074136,42.12,106.36,106.25,45.9693]
[1744179074328,72.87869201,106.36,106.25,45.9693]
[1744179074532,0.06585924,106.32,106.29,0.06106473]
[1744179074732,0.06585924,106.32,106.3,9.4132]
[1744179075139,0.06585924,106.32,106.3,0.07244844]
[1744179076034,9.4128,106.31,106.3,0.07244844]
[1744179076235,0.06585924,106.32,106.3,0.07244844]
[1744179076638,43.76,106.39,106.31,43.76]
[1744179076833,43.76,106.39,106.32,2.3369]
[1744179077033,43.76,106.39,106.33,62.0]
[1744179077244,2.37,106.41,106.34,43.76]
[1744179077546,156.51317655,106.42,106.34,43.76]
[1744179077741,0.02720145,106.39,106.36,0.06289754]
[1744179078144,9.4075,106.37,106.36,0.06289754]
[1744179079942,9.407,106.38,106.36,0.06289754]
[1744179080337,0.02720145,106.39,106.36,0.06289754]
[1744179080532,76.21869201,106.38,106.3,43.76]
[1744179080741,4.5685,106.37,106.3,9.4136]
[1744179080941,9.4088,106.36,106.28,30.75869201]
[1744179081135,6.9666,106.37,106.28,30.75869201]
[1744179081336,6.9666,106.37,106.31,9.4123]
[1744179081737,0.06580116,106.35,106.33,0.068786]
[1744179082440,0.06580116,106.35,106.33,9.479386]
[1744179083344,0.06580116,106.35,106.34,9.4101]
[1744179083548,54.8644,106.41,106.33,45.528786]
[1744179083737,54.8644,106.41,106.38,9.4065]
[1744179083941,54.8644,106.41,106.34,4.4367]
[1744179084137,9.4044,106.41,106.35,62.0]
[1744179084343,4.5962,106.42,106.35,62.0]
[1744179084847,0.02429783,106.4,106.37,0.06080076]
[1744179085237,9.42959783,106.4,106.37,0.06080076]
[1744179085435,0.02429783,106.4,106.37,0.06080076]
[1744179085842,0.02429783,106.4,106.38,9.4058]
[1744179086545,0.02429783,106.4,106.37,0.06080076]
[1744179087441,9.42959783,106.4,106.37,0.06080076]
[1744179088140,9.42959783,106.4,106.37,9.46780076]
[1744179088343,0.02429783,106.4,106.37,0.06080076]
[1744179088944,0.02429783,106.4,106.39,9.4057]
[1744179089246,0.02429783,106.4,106.37,0.06080076]
[1744179089247,13.9685,106.45,106.41,9.4033]
[1744179089650,13.9685,106.45,106.37,0.06080076]
[1744179089651,4.5676,106.45,106.36,78.55849201]
[1744179089948,45.44,106.48,106.42,9.4025]
[1744179090142,2.1835,106.49,106.42,45.44]
[1744179090337,4.5673,106.49,106.44,0.07155003]
[1744179090542,2.3838,106.49,106.44,0.07155003]
[1744179091046,40.0,106.5,106.44,0.07155003]
[1744179091847,9.4004,106.45,106.44,0.07155003]
[1744179092243,45.42,106.48,106.44,0.07155003]
[1744179092443,9.3991,106.47,106.44,0.07155003]
[1744179092946,9.3996,106.46,106.44,0.07155003]
[1744179093146,45.42,106.48,106.44,0.07155003]
[1744179094243,9.4004,106.45,106.44,0.07155003]
[1744179095156,54.8204,106.45,106.44,0.07155003]
[1744179095543,45.42,106.45,106.39,2.4026]
[1744179095746,45.42,106.45,106.36,45.42]
[1744179096052,9.4037,106.42,106.36,47.7792]
[1744179096244,49.9198,106.45,106.36,47.7792]
[1744179096450,9.4047,106.41,106.37,9.4071]
[1744179096752,0.06844498,106.42,106.39,0.06494775]
[1744179096948,9.404,106.41,106.39,0.06494775]
[1744179097152,45.48844498,106.42,106.39,0.06494775]
[1744179097550,54.89194498,106.42,106.39,9.47034775]
[1744179097851,45.48844498,106.42,106.39,0.06494775]
[1744179098256,54.89194498,106.42,106.39,9.47024775]
[1744179098556,45.48844498,106.42,106.39,0.06494775]
[1744179098759,9.4048,106.4,106.39,0.06494775]
[1744179098955,45.48844498,106.42,106.39,0.06494775]
[1744179099251,2.3425,106.41,106.39,0.06494775]
[1744179099957,0.06844498,106.42,106.4,9.4043]
[1744179100352,0.06844498,106.42,106.41,9.404]
[1744179100852,0.06844498,106.42,106.4,9.4044]
[1744179101245,0.06844498,106.42,106.39,45.48494775]
[1744179101462,0.06844498,106.42,106.4,9.4048]
[1744179102258,0.06844498,106.42,106.39,45.48494775]
[1744179102659,9.47194498,106.42,106.39,45.48494775]
[1744179102860,9.47194498,106.42,106.39,0.06494775]
[1744179103253,0.06844498,106.42,106.39,0.06494775]
[1744179103759,45.48844498,106.42,106.39,0.06494775]
[1744179104966,9.4048,106.4,106.39,0.06494775]
[1744179105555,9.4044,106.41,106.39,0.06494775]
[1744179106258,0.06844498,106.42,106.39,0.06494775]
[1744179107763,0.06844498,106.42,106.41,9.404]
[1744179109362,0.06844498,106.42,106.4,9.4044]
[1744179110059,0.06844498,106.42,106.39,0.06494775]
[1744179110362,0.06844498,106.42,106.41,9.404]
[1744179110665,0.06844498,106.42,106.39,0.06494775]
[1744179111162,0.06844498,106.42,106.4,9.4042]
[1744179111766,0.06844498,106.42,106.41,9.404]
[1744179112066,0.06844498,106.42,106.39,0.06494775]
[1744179112266,9.47194498,106.42,106.39,9.47024775]
[1744179112564,9.47194498,106.42,106.39,0.06494775]
[1744179113061,0.06844498,106.42,106.39,0.06494775]
[1744179113465,9.404,106.41,106.39,0.06494775]
[1744179113667,0.06844498,106.42,106.39,0.06494775]
[1744179113866,0.06844498,106.42,106.4,9.4044]
[1744179114355,0.06844498,106.42,106.39,9.47004775]
[1744179114560,9.47174498,106.42,106.39,9.47004775]
[1744179115769,9.404,106.41,106.39,0.06494775]
[1744179117070,9.4048,106.4,106.39,0.06494775]
[1744179118068,55.6848,106.4,106.39,0.06494775]
[1744179118270,46.28,106.4,106.35,130.48214168]
[1744179118570,573.41869201,106.4,106.35,130.48214168]
[1744179118777,9.4084,106.36,106.35,27.10527331]
[1744179119065,46.28,106.36,106.34,103.37686837]
[1744179119264,9.4093,106.35,106.34,103.37686837]
[1744179119465,9.4093,106.35,106.34,103.43739113]
[1744179119660,9.4093,106.35,106.34,96.91449113]
[1744179120565,9.4093,106.35,106.34,78.09049113]
[1744179120769,9.4101,106.34,106.33,195.58995921]
[1744179120965,30.75869201,106.34,106.32,258.44217094]
[1744179121161,46.28,106.33,106.26,9.417]
[1744179121366,46.28,106.33,106.25,6.8193]
[1744179121771,46.28,106.33,106.25,16.2368]
[1744179122071,0.07221556,106.3,106.28,0.06993987]
[1744179122268,30.75869201,106.38,106.28,0.06993987]
[1744179122459,46.28,106.37,106.28,0.06993987]
[1744179122664,9.4098,106.35,106.31,9.4123]
[1744179123271,9.4103,106.34,106.3,9.4133]
[1744179123468,0.06338158,106.34,106.32,0.06813304]
[1744179123668,46.34338158,106.34,106.32,0.06813304]
[1744179123969,46.34794406,106.34,106.27,9.4159]
[1744179124175,77.03869201,106.34,106.25,6.8193]
[1744179124873,9.4147,106.29,106.26,9.4168]
[1744179125071,46.3,106.3,106.26,9.4168]
[1744179125274,0.0605158,106.29,106.26,9.48314062]
[1744179125574,9.4755158,106.29,106.26,9.48314062]
[1744179126677,0.0605158,106.29,106.26,9.48314062]
[1744179127078,0.0605158,106.29,106.26,0.06634062]
[1744179127678,0.0605158,106.29,106.26,9.48324062]
[1744179128081,0.0605158,106.29,106.26,0.06634062]
[1744179128279,0.0605158,106.29,106.27,9.4158]
[1744179128482,0.0605158,106.29,106.26,0.06634062]
[1744179129180,9.416,106.28,106.26,0.06634062]
[1744179129779,0.0605158,106.29,106.26,0.06634062]
[1744179130789,0.0605158,106.29,106.26,9.48294062]
[1744179131290,9.4757158,106.29,106.26,0.06634062]
[1744179131493,0.0605158,106.29,106.26,0.06634062]
[1744179131789,0.0605158,106.29,106.26,9.48314062]
[1744179131985,0.0605158,106.29,106.26,0.06634062]
[1744179132489,0.0605158,106.29,106.27,9.4163]
[1744179132985,0.0605158,106.29,106.26,0.06634062]
[1744179133593,0.0605158,106.29,106.26,9.48294062]
[1744179133888,0.0605158,106.29,106.26,0.06634062]
[1744179134287,0.0605158,106.29,106.27,9.4163]
[1744179134588,0.0605158,106.29,106.26,0.06634062]
[1744179134886,9.4753158,106.29,106.26,9.48314062]
[1744179135386,0.0605158,106.29,106.26,9.48314062]
[1744179136391,0.0605158,106.29,106.27,9.4161]
[1744179136697,0.0605158,106.29,106.26,0.06634062]
[1744179136887,46.32,106.33,106.31,9.4126]
[1744179137191,46.32,106.36,106.28,30.75869201]
[1744179137885,46.32,106.36,106.27,48.5214]
[1744179138088,46.32,106.36,106.3,0.06681863]
[1744179138089,9.4121,106.32,106.3,0.06681863]
[1744179138795,9.47900101,106.33,106.3,0.06681863]
[1744179139598,9.47900101,106.33,106.3,9.48051863]
[1744179140198,0.06750101,106.33,106.32,9.4119]
[1744179140494,0.06750101,106.33,106.3,0.06681863]
[1744179140688,0.06750101,106.33,106.31,9.4122]
[1744179141087,0.06750101,106.33,106.3,0.06681863]
[1744179141288,9.47890101,106.33,106.3,9.48011863]
[1744179142494,9.4119,106.32,106.3,0.06681863]
[1744179142693,44.86750101,106.33,106.3,0.06681863]
[1744179142893,9.4128,106.31,106.3,0.06681863]
[1744179143590,9.4123,106.32,106.3,0.06681863]
[1744179143984,44.86750101,106.33,106.3,0.06681863]